{"text_format":"1","workbook":"xlsx","n_sheets":12,"sheets":["About","CMV12000 ","CMV20000","CMV50000","IMX287","IMX273","IMX174","IMX252","IMX250","IMX255","IMX253","GSENSE2020"],"not_rendered":{"charts":0,"images":0,"macros":1,"external_links":0,"defined_names":0,"comments":0,"pivot_tables":0},"unopened":[],"bounds":{"document_bytes":16777216,"sheet_cells":100000,"rows_first":2000,"rows_last":500,"rows_between":2000,"halvings":0,"cell_chars":16384,"cell_head_chars":4096},"cells_cut":0,"cells_raw":0,"read":"whole","date_system":"1900"}

{"sheet":"About","index":0,"n_rows":11,"n_cols":12,"rows_kept":11,"cut":false,"hidden":false,"merged":[]}
["XIMEA Camera performance caluclator"]
["Version 2018-02-09"]
[]
["This document contains multiple calculators for different sensors. Each is located in different sheet."]
[]
["Usage:"]
["1. Enable macros (if you see yellow bar on the top, the macros are probably disabled)."]
["2. Activate the sheet depending on sensor:"]
[null,"CMV12000","CMV20000","CMV50000","IMX287","IMX273","IMX174","IMX252","IMX250","IMX255","IMX253","GSENSE2020"]
["3. Fill settings (orange)"]
["4. Use results (green)"]

{"sheet":"CMV12000 ","index":1,"n_rows":34,"n_cols":18,"rows_kept":34,"cut":false,"hidden":false,"merged":[]}
[null,null,null,null,null,null,"Note"]
["Camera Model","CB120",null,null,null,null,"CB120xG-CM has PCIe x4 Gen2 interface (1750MB/s); CB120xG-CM-X8G3 with PCIe x8 Gen3 interface (7000MB/s)"]
["Setting","Value","Units","min","max","xiApi parameter","Note"]
["Sensor Readout Frequency",327,"[MHz]",120,327,null,"Data Rate of Sensor image data output; Note: CB120 camera implementation has 480MHz limit @8bit mode"]
["Sensor Bit Depth",8,"[count]",8,12,"XI_PRM_SENSOR_DATA_BIT_DEPTH "]
["Acquisition Mode","Normal","[count]"]
["Channel Count per Side",16,"[count]",16,16,"XI_PRM_SENSOR_OUTPUT_CHANNEL_COUNT","CB120 Camera Model supports only 16 Channels per side; CB120-X8G3 Camera Model supports only 32 Channels per side"]
["ROI Width",4096,"[count]",16,4096,"XI_PRM_WIDTH","ROI in X direction decreases average transport bandwidth needed to transfer one frame (the whole line is read from sensor but only ROI part is sent)"]
["ROI Height",3072,"[count]",2,3072,"XI_PRM_HEIGHT","ROI in Y direction decreases frame readout time (decreases number of lines that need to be read out before going to next frame)"]
["Exp time reg",1,"[count]",1,65535,null,"See the resulting Actual Exposure Time in [us] below (depends on the Exp_Time, FOT and Clk_freq)"]
["Exp time ",28.305810397553515,"[us]",{"$f":"((1-1)*(G22+1)+(34*MOD(G21,256))+1)*G17*B5/1000","v":28.305810397553515},{"$f":"((65535-1)*(G22+1)+(34*MOD(G21,256))+1)*G17*B5/1000","v":413674.10397553514},"XI_PRM_EXPOSURE"]
["Transport Bit Depth",8,"[count]",8,16,"XI_PRM_OUTPUT_DATA_BIT_DEPTH"]
["Troughput Limit",1300,"[MB/s]",{"$f":"(B8*B9*B12/8/1000000*(1/(((INT(G21/256)+2)*((G22+1)*B5/(D4*1000000)))+(((G22+1)*B5/(D4*1000000))*G25/2))))+10","v":483.19835133427603},2000,"XI_PRM_LIMIT_BANDWIDTH","Adjusts Sensor Readout Frequency"]
[]
["Results",null,null,null,null,null,null,null,null,null,"Register Presets"]
["Frame Transfer",null,null,null,null,"Calculations",null,null,null,null,"Channel Count",null,32,16,8,4,2,1]
["Pixel Count",{"$f":"B9*B8/1000000","v":12.582912},"[Mpix]",null,null,"clk_per",{"$f":"1000/B4","v":3.0581039755351682},"[ns]",null,"8bit","Normal","reg82",3618,2082,1058,546,290,290]
["Image Size",{"$f":"B17*B12/8","v":12.582912},"[MBytes]",null,null,"channel count log",{"$f":"LOG(B7,2)","v":4},"[count]",null,null,null,"reg85",143,257,515,1031,2063,4127]
["Frame Time",{"$f":"MAX(G26,B25/1000)+G23/1000","v":9.7582385321100915},"[ms]",null,null,"mode number",{"$f":"ISNUMBER(FIND(B6,\"Normal\"))*1+ISNUMBER(FIND(B6,\"Skipping 2x2\"))*2+ISNUMBER(FIND(B6,\"Binning 2x2\"))*3","v":1},"[count]",null,null,"Subsample 2x2","reg82",2338,2082,1058,546,290,290]
["Max FPS",{"$f":"1000/B19","v":102.47751135714071},"[count]",null,null,"bit depth number",{"$f":"(B5-8)/2","v":0},"[count]",null,null,null,"reg85",239,257,515,1031,2063,4127]
["Average Transfer Speed",{"$f":"B18/B19*1000","v":1289.4655073859024},"[MB/s]",null,null,"reg 82",{"$f":"INDIRECT(ADDRESS(17+2*(G19-1)+6*G20,13+5-G18))","v":2082},"[count]",null,null,"Binning 2x2","reg82",802,802,802,546,290,290]
[null,null,null,null,null,"reg 85",{"$f":"INDIRECT(ADDRESS(18+2*(G19-1)+6*G20,13+5-G18))","v":257},"[count]",null,null,null,"reg85",767,767,767,1031,2063,4127]
["Exposure times",null,null,null,null,"FOT",{"$f":"(INT(G21/256)+2)*G24","v":63.119266055045877},"[us]",null,"10bit","Normal","reg82",3099,1563,795,539,283,283]
["Min Exposure Time",{"$f":"D11","v":28.305810397553515},"[us]",null,null,"Line Time",{"$f":"(G22+1)*G17*B5/1000","v":6.3119266055045875},"[us]",null,null,null,"reg85",128,257,515,1031,2063,4127]
["Actual Exposure Time",{"$f":"((B10-1)*(G22+1)+(34*MOD(G21,256))+1)*G17*B5/1000","v":28.305810397553515},"[us]",null,null,"Readout lines",3072,"[count]",null,null,"Subsample 2x2","reg82",2843,1563,795,539,283,283]
[null,null,null,null,null,"Readout time",{"$f":"G24*G25/2/1000","v":9.6951192660550465},"[ms]",null,null,null,"reg85",143,257,515,1031,2063,4127]
["Transport",null,null,null,null,"Interface max",1300,"[MB/s] ",null,null,"Binning 2x2","reg82",798,798,798,542,286,286]
["Link Throughput ",{"$f":"B18/G26*1000","v":1297.8604651162791},"[MB/s] ",{"$f":"IF((B28>G27), \"Throughput is higher than camera family data interface capability\", \"\")","v":""},null,null,null,null,null,null,null,"reg85",575,575,575,1031,2063,4127]
[null,null,null,{"$f":"IF((B28>G27), \"Interface throughput maximum may vary depending on PCIe TLP size of the system\", \"\")","v":""},null,null,null,null,null,"12bit","Normal","reg82",1822,1822,1054,542,286,286]
[null,null,null,null,null,null,null,null,null,null,null,"reg85",244,257,515,1031,2063,4127]
[null,null,null,null,null,null,null,null,null,null,"Subsample 2x2","reg82",2078,3102,1054,542,286,286]
[null,null,null,null,null,null,null,null,null,null,null,"reg85",239,257,515,1031,2063,4127]
[null,null,null,null,null,null,null,null,null,null,"Binning 2x2","reg82",1054,1054,1054,542,286,286]
[null,null,null,null,null,null,null,null,null,null,null,"reg85",479,479,515,1031,2063,4127]

{"sheet":"CMV20000","index":2,"n_rows":27,"n_cols":8,"rows_kept":27,"cut":false,"hidden":false,"merged":[]}
[null,null,null,null,null,null,"Note"]
["Camera Model","CB200"]
["Setting","Value","Units","min","max","xiApi parameter","Note"]
["Sensor Readout Frequency",480,"[MHz]",120,480,null,"Data Rate of Sensor image data output"]
["Sensor Bit Depth",12,"[count]",12,12,"XI_PRM_SENSOR_DATA_BIT_DEPTH ","CB200 Camera Model supports only 12 Channels"]
["ROI Width",5120,"[count]",16,5120,"XI_PRM_WIDTH","ROI in X direction decreases average transport bandwidth needed to transfer one frame (the whole line is read from sensor but only ROI part is sent)"]
["ROI Height",3840,"[count]",2,3840,"XI_PRM_HEIGHT","ROI in Y direction decreases frame readout time (decreases number of lines that need to be read out before going to next frame)"]
["Exp time reg",1,"[count]",1,65535,null,"Actual Exposure Time depends on the Exp_Time, FOT and Clk_freq"]
["Exp time ",94.025000000000006,"[us]",{"$f":"((D8-1)*641+1+47*80)*G16/1000","v":94.025000000000006},{"$f":"((E8-1)*641+1+47*80)*G16/1000","v":1050276.375},"XI_PRM_EXPOSURE"]
["Transport Bit Depth",8,"[count]",8,16,"XI_PRM_OUTPUT_DATA_BIT_DEPTH"]
["Troughput Limit",1300,"[MB/s]",{"$f":" (B6*B7*B10/8) / ((641 * (1/((D4 / 12) * 1000000)) / 2)  * B7) / 1000000","v":159.75039001560063},2000,"XI_PRM_LIMIT_BANDWIDTH","Adjusts Sensor Readout Frequency"]
[]
["Results"]
["Frame Transfer",null,null,null,null,"Calculations"]
["Pixel Count",{"$f":"B7*B6/1000000","v":19.660799999999998},"[Mpix]",null,null,"master clock",{"$f":"B4/12","v":40},"[MHz]"]
["Image Size",{"$f":"B6*B7/8*B10/1000000","v":19.660799999999998},"[MBytes]",null,null,"master clk_per",{"$f":"1000/G15","v":25},"[ns]"]
["Frame Time",{"$f":"MAX(G18,B23/1000)+G17/1000","v":30.9603},"[ms]",null,null,"FOT",{"$f":"((80*80+80/8)+2*641)*G16/1000","v":192.3},"[us]"]
["Max FPS",{"$f":"1000/B17","v":32.299428623107659},"[count]",null,null,"Readout Time",{"$f":"641*G16*B7/2/1000000","v":30.768000000000001},"[ms]"]
["Average Transfer Speed",{"$f":"B16/B17*1000","v":635.03260627319503},"[MB/s]",null,null,"Interface max",1300,"[MB/s] "]
[]
["Exposure times"]
["Min Exposure Time",{"$f":"(1+47*80)*G16/1000","v":94.025000000000006},"[us]"]
["Actual Exposure Time",{"$f":"((B8-1)*641+1+47*80)*G16/1000","v":94.025000000000006},"[us]"]
[]
["Transport"]
["Link Throughput ",{"$f":"B16/G18*1000","v":639.0015600624024},"[MB/s] ",{"$f":"IF((B26>G19), \"Throughput is higher than camera family data interface capability\", \"\")","v":""}]
[null,null,null,{"$f":"IF((B26>G19), \"Interface throughput maximum may vary depending on PCIe TLP size of the system\", \"\")","v":""}]

{"sheet":"CMV50000","index":3,"n_rows":28,"n_cols":8,"rows_kept":28,"cut":false,"hidden":false,"merged":[]}
[null,null,null,null,null,null,"Note"]
["Camera Model","CB500CG-CM",null,null,null,null,"xiB Family, 48 MPix, Color model"]
["Setting","Value","Units","min","max","xiApi parameter","Note"]
["Sensor Bit Depth",12,"[count]",12,12,"XI_PRM_SENSOR_DATA_BIT_DEPTH ","CMV50000 supports only 12 bit depth"]
["Binning","1x1",null,null,null,"XI_PRM_BINNING_VERTICAL; XI_PRM_BINNING_HORIZONTAL ","Binning: vertical x horizontal"]
["Decimation","1x1",null,null,null,"XI_PRM_DECIMATION_VERTICAL; XI_PRM_DECIMATION_HORIZONTAL","Decimation: vertical x horizontal"]
["Channel Count",22,"[count]",22,22,"XI_PRM_SENSOR_OUTPUT_CHANNEL_COUNT"]
["ROI Width",7920,"[count]",8,7920,"XI_PRM_WIDTH","ROI in X direction decreases average transport bandwidth needed to transfer one frame (the whole line is read from sensor but only ROI part is sent)"]
["ROI Height",6004,"[count]",2,6004,"XI_PRM_HEIGHT","ROI in Y direction decreases frame readout time (decreases number of lines that need to be read out before going to next frame)"]
["Exp Time",100,"[us]",100,17000000,"XI_PRM_EXPOSURE"]
["Transport Bit Depth",8,"[count]",8,16,"XI_PRM_OUTPUT_DATA_BIT_DEPTH"]
["Troughput Limit",1300,"[MB/s]",43.4370994323384,2000,"XI_PRM_LIMIT_BANDWIDTH","Adjusts Line Period"]
[]
["Results"]
["Frame Transfer",null,null,null,null,"Calculations"]
["Pixel Count",{"$f":"B9*B8/1000000","v":47.551679999999998},"[Mpix]"]
["Image Size",{"$f":"B8*B9/8*B11/1000000","v":47.551679999999998},"[MBytes]"]
["Line Period",6.092307692307692,"[us]"]
["Frame Time",{"$f":"MAX(G22,B25/1000)+G19/1000","v":36.831423169601486},"[ms]",null,null,"glob",{"$f":"150*69*12/830","v":149.63855421686748},"[us]"]
["Max FPS",{"$f":"1000/B19","v":27.150729294254962},"[count]",null,null,"Line Period min",{"$f":"(1+ISNUMBER(FIND(\"2x2\",B5,1)))*370*12/830","v":5.3493975903614457},"[us]"]
["Average Transfer Speed",{"$f":"B17/B19*1000","v":1291.0627911670379},"[MB/s]",null,null,"Line Period max",{"$f":"(1+ISNUMBER(FIND(\"2x2\",B5,1)))*16383*12/830","v":236.86265060240964},"[us]"]
[null,null,null,null,null,"Readout Time",{"$f":"B18*(B9+6*2+5)/1000","v":36.681784615384615},"[ms]"]
["Exposure times",null,null,null,null,"Interface max",1300,"[MB/s] "]
["Min Exposure Time",{"$f":"D10","v":100},"[us]"]
["Actual Exposure Time",{"$f":"B10","v":100},"[us]"]
[]
["Transport"]
["Link Throughput ",{"$f":"B16*B11/8/G22*1000","v":1296.3295133698721},"[MB/s] ",{"$f":"IF((B28>G23), \"Throughput is higher than camera family data interface capability\", \"\")","v":""}]

{"sheet":"IMX287","index":4,"n_rows":28,"n_cols":14,"rows_kept":28,"cut":false,"hidden":false,"merged":[]}
[null,null,null,null,null,null,"Note"]
["Camera Model","MC004CG-SY",null,null,null,null,"xiC Family, 0.4 MPix, Color model"]
["Setting","Value","Units","min","max","xiApi parameter","Note"]
["Sensor Bit Depth",8,"[count]",8,12,"XI_PRM_SENSOR_DATA_BIT_DEPTH ","IMX287 supports 8; 10 and 12 bit depth"]
["Binning","1x1",null,null,null,null,"IMX287 does not support binning"]
["Decimation","1x1",null,null,null,null,"IMX287 does not support decimation"]
["Channel Count",4,"[count]",4,4,"XI_PRM_SENSOR_OUTPUT_CHANNEL_COUNT","IMX287 supports 4 channels"]
["ROI Width",728,"[count]",8,728,"XI_PRM_WIDTH","ROI in X direction decreases average transport bandwidth needed to transfer one frame (the whole line is read from sensor but only ROI part is sent)"]
["ROI Height",544,"[count]",4,544,"XI_PRM_HEIGHT","ROI in Y direction decreases frame readout time (decreases number of lines that need to be read out before going to next frame)"]
["Exp Time",17,"[us]",{"$f":"B24","v":17},30000000,"XI_PRM_EXPOSURE"]
["Transport Bit Depth",8,"[count]",8,16,"XI_PRM_OUTPUT_DATA_BIT_DEPTH"]
["Troughput Limit",390,"[MB/s]",{"$f":"(10000000+(9375000/(65535*B9))*B9*B8*B11)/1000000","v":10.833142595559625},1000,"XI_PRM_LIMIT_BANDWIDTH","Adjusts Line Period (it affects the granularity of exposure time)"]
[]
["Results"]
["Frame Transfer",null,null,null,null,"Calculations",null,null,null,null,"Register Presets"]
["Pixel Count",{"$f":"B9*B8/1000000","v":0.396032},"[Mpix]",null,null,"bit depth number",{"$f":"(B4-6)/2","v":1},"[count]",null,null,"Channel Count",null,4]
["Image Size",{"$f":"B8*B9/8*B11/1000000","v":0.396032},"[MBytes]",null,null,"channel count log",{"$f":"LOG(B7,2)","v":2},"[count]",null,"8bit","Normal","HMAX",242,432]
["Line Period",3.226666666666667,"[us]",null,null,"HMAX reg min",{"$f":"INDIRECT(ADDRESS((G16*2+15)+ISNUMBER(FIND(\"x2\",B6, 2))+ISNUMBER(FIND(\"x2\",B5, 2)), 15-G17))","v":242},"[count]"]
["Frame Time",{"$f":"G20*B18/1000","v":1.8779200000000003},"[ms]",null,null,"H period min",{"$f":"(1/75000000)*1000000*G18","v":3.226666666666667},"[us]",null,"10bit","Normal","HMAX",290,530]
["Max FPS",{"$f":"1000/B19","v":532.50404703075731},"[count]",null,null,"VMAX",{"$f":"MAX(ROUND((((B10-13.73)/B18)+13), 0), B9+38)","v":582},"[count]"]
["Average Transfer Speed",{"$f":"B17/B19*1000","v":210.88864275368491},"[MB/s]",null,null,"FOT",{"$f":"10*B18","v":32.266666666666673},"[us]",null,"12bit","Normal","HMAX",396,624]
[null,null,null,null,null,"Readout Time",{"$f":"B18*B9/1000","v":1.7553066666666668},"[ms]"]
["Exposure times",null,null,null,null,"Interface max",390,"[MB/s] "]
["Min Exposure Time",{"$f":"ROUND(B18+13.73, 0)","v":17},"[us]"]
["Actual Exposure Time",{"$f":"((ROUND((B10-13.73)/B18,0)*B18)+13.73)","v":16.956666666666667},"[us]"]
[]
["Transport"]
["Link Throughput ",{"$f":"B16*B11/8/G22*1000","v":225.61983471074379},"[MB/s] ",{"$f":"IF((B28>G23), \"Throughput is higher than camera family data interface capability\", \"\")","v":""}]

{"sheet":"IMX273","index":5,"n_rows":28,"n_cols":15,"rows_kept":28,"cut":false,"hidden":false,"merged":[]}
[null,null,null,null,null,null,"Note"]
["Camera Model","MC016CG-SY",null,null,null,null,"xiC Family, 1.6 MPix, Color model"]
["Setting","Value","Units","min","max","xiApi parameter","Note"]
["Sensor Bit Depth",8,"[count]",8,12,"XI_PRM_SENSOR_DATA_BIT_DEPTH ","IMX273 supports 8; 10 and 12 bit depth"]
["Binning","1x1",null,null,null,"XI_PRM_BINNING_VERTICAL; XI_PRM_BINNING_HORIZONTAL ","Only Mono IMX273 supports Binning"]
["Decimation","1x1",null,null,null,"XI_PRM_DECIMATION_VERTICAL; XI_PRM_DECIMATION_HORIZONTAL","Binning/Decimation: vertical x horizontal"]
["Channel Count",8,"[count]",4,8,"XI_PRM_SENSOR_OUTPUT_CHANNEL_COUNT","IMX273 supports 4; or 8 channels"]
["ROI Width",1456,"[count]",8,1456,"XI_PRM_WIDTH","ROI in X direction decreases average transport bandwidth needed to transfer one frame (the whole line is read from sensor but only ROI part is sent)"]
["ROI Height",1088,"[count]",4,1088,"XI_PRM_HEIGHT","ROI in Y direction decreases frame readout time (decreases number of lines that need to be read out before going to next frame)"]
["Exp Time",19,"[us]",{"$f":"B24","v":17},30000000,"XI_PRM_EXPOSURE"]
["Transport Bit Depth",8,"[count]",8,16,"XI_PRM_OUTPUT_DATA_BIT_DEPTH"]
["Troughput Limit",390,"[MB/s]",{"$f":"(10000000+(9375000/(65535*B9))*B9*B8*B11)/1000000","v":11.66628519111925},1000,"XI_PRM_LIMIT_BANDWIDTH","Adjusts Line Period (it affects the granularity of exposure time)"]
[]
["Results"]
["Frame Transfer",null,null,null,null,"Calculations",null,null,null,null,"Register Presets"]
["Pixel Count",{"$f":"B9*B8/1000000","v":1.584128},"[Mpix]",null,null,"bit depth number",{"$f":"(B4-6)/2","v":1},"[count]",null,null,"Channel Count",null,8,4]
["Image Size",{"$f":"B8*B9/8*B11/1000000","v":1.584128},"[MBytes]",null,null,"channel count log",{"$f":"LOG(B7,2)","v":3},"[count]",null,"8bit","Normal","HMAX",238,424,796]
["Line Period",3.7333333333333334,"[us]",null,null,"HMAX reg min",{"$f":"INDIRECT(ADDRESS((G16*2+15)+ISNUMBER(FIND(\"x2\",B6, 2))+ISNUMBER(FIND(\"x2\",B5, 2)), 16-G17))","v":238},"[count]",null,null,"Decimation Xx2","HMAX",218,242,432]
["Frame Time",{"$f":"G20*B18/1000","v":4.203733333333334},"[ms]",null,null,"H period min",{"$f":"(1/75000000)*1000000*G18","v":3.1733333333333333},"[us]",null,"10bit","Normal","HMAX",290,520,990]
["Max FPS",{"$f":"1000/B19","v":237.88378584115702},"[count]",null,null,"VMAX",{"$f":"MAX(ROUND((((B10-13.73)/B18)+13), 0), B9+38)","v":1126},"[count]",null,null,"Decimation Xx2","HMAX",250,290,530]
["Average Transfer Speed",{"$f":"B17/B19*1000","v":376.83836589698041},"[MB/s]",null,null,"FOT",{"$f":"10*B18","v":37.333333333333336},"[us]",null,"12bit","Normal","HMAX",396,612,1170]
[null,null,null,null,null,"Readout Time",{"$f":"B18*B9/1000","v":4.061866666666667},"[ms]",null,null,"Decimation Xx2","HMAX",396,396,624]
["Exposure times",null,null,null,null,"Interface max",390,"[MB/s] "]
["Min Exposure Time",{"$f":"ROUND(B18+13.73, 0)","v":17},"[us]"]
["Actual Exposure Time",{"$f":"((ROUND((B10-13.73)/B18,0)*B18)+13.73)","v":17.463333333333335},"[us]"]
[]
["Transport"]
["Link Throughput ",{"$f":"B16*B11/8/G22*1000","v":389.99999999999994},"[MB/s] ",{"$f":"IF((B28>G23), \"Throughput is higher than camera family data interface capability\", \"\")","v":""}]

{"sheet":"IMX174","index":6,"n_rows":27,"n_cols":15,"rows_kept":27,"cut":false,"hidden":false,"merged":[]}
[null,null,null,null,null,null,"Note"]
["Camera Model","MC023CG-SY",null,null,null,null,"xiC Family, 2.3 MPix, Color model"]
["Setting","Value","Units","min","max","xiApi parameter","Note"]
["Sensor Bit Depth",10,"[count]",10,12,"XI_PRM_SENSOR_DATA_BIT_DEPTH ","IMX174 supports 10 and 12 bit depth"]
["Decimation","1x1",null,null,null,"XI_PRM_DECIMATION_VERTICAL; XI_PRM_DECIMATION_HORIZONTAL","Decimation: vertical x horizontal; Only mono camera supports decimation"]
["Channel Count",8,"[count]",2,8,"XI_PRM_SENSOR_OUTPUT_CHANNEL_COUNT","IMX174 supports 2; 4; or 8 channels"]
["ROI Width",1936,"[count]",8,1936,"XI_PRM_WIDTH","ROI in X direction decreases average transport bandwidth needed to transfer one frame (the whole line is read from sensor but only ROI part is sent)"]
["ROI Height",1216,"[count]",2,1216,"XI_PRM_HEIGHT","ROI in Y direction decreases frame readout time (decreases number of lines that need to be read out before going to next frame)"]
["Exp Time",19,"[us]",{"$f":"B23","v":19},30000000,"XI_PRM_EXPOSURE"]
["Transport Bit Depth",8,"[count]",8,16,"XI_PRM_OUTPUT_DATA_BIT_DEPTH"]
["Troughput Limit",390,"[MB/s]",{"$f":"(10000000+(9375000/(65535*B8))*B8*B7*B10)/1000000","v":12.21560997940032},1000,"XI_PRM_LIMIT_BANDWIDTH","Adjusts Line Period (it affects the granularity of exposure time)"]
[]
["Results"]
["Frame",null,null,null,null,"Calculations",null,null,null,null,"Register Presets"]
["Pixel Count",{"$f":"B8*B7/1000000","v":2.3541759999999998},"[Mpix]",null,null,"bit depth number",{"$f":"(B4-8)/2","v":1},"[count]",null,null,"Channel Count",null,8,4,2]
["Image Size",{"$f":"B7*B8/8*B10/1000000","v":2.3541759999999998},"[MBytes]",null,null,"channel count log",{"$f":"LOG(B6,2)","v":3},"[count]",null,"10bit","Normal","HMAX",360,720,1440]
["Line Period",4.9641025641025642,"[us]",null,null,"HMAX reg min",{"$f":"INDIRECT(ADDRESS(G15*2+14,16-G16))","v":360},"[count]"]
["Frame Time",{"$f":"G19*B17/1000","v":6.2249846153846153},"[ms]",null,null,"H period min",{"$f":"(1/75000000)*1000000*G17","v":4.8000000000000007},"[us]",null,"12bit","Normal","HMAX",462,924,1848]
["Max FPS",{"$f":"1000/B18","v":160.64296729803473},"[count]",null,null,"VMAX",{"$f":"MAX(ROUND((((B9-13.73)/B17)+13), 0), B8+38+(IF(B5=\"2x1\",-2,0)+IF(B5=\"2x2\",-2,0)))","v":1254},"[count]"]
["Average Transfer Speed",{"$f":"B16/B18*1000","v":378.18181818181819},"[MB/s]",null,null,"FOT",{"$f":"10*B17","v":49.641025641025642},"[us]"]
[null,null,null,null,null,"Readout Time",{"$f":"B17*B8/1000","v":6.0363487179487185},"[ms]"]
["Exposure times",null,null,null,null,"Interface max",390,"[MB/s] "]
["Min Exposure Time",{"$f":"ROUND(B17+13.73, 0)","v":19},"[us]"]
["Actual Exposure Time",{"$f":"((ROUND((B9-13.73)/B17,0)*B17)+13.73)","v":18.694102564102565},"[us]"]
[]
["Transport"]
["Link Throughput ",{"$f":"B15*B10/8/G21*1000","v":389.99999999999994},"[MB/s] ",{"$f":"IF((B27>G22), \"Throughput is higher than camera family data interface capability\", \"\")","v":""}]

{"sheet":"IMX252","index":7,"n_rows":28,"n_cols":15,"rows_kept":28,"cut":false,"hidden":false,"merged":[]}
[null,null,null,null,null,null,"Note"]
["Camera Model","MC031CG-SY",null,null,null,null,"xiC Family, 3.1 MPix, Color model"]
["Setting","Value","Units","min","max","xiApi parameter","Note"]
["Sensor Bit Depth",8,"[count]",8,12,"XI_PRM_SENSOR_DATA_BIT_DEPTH ","IMX252 supports 8; 10 and 12 bit depth"]
["Binning","1x1",null,null,null,"XI_PRM_BINNING_VERTICAL; XI_PRM_BINNING_HORIZONTAL ","Only Mono IMX252 supports Binning"]
["Decimation","1x1",null,null,null,"XI_PRM_DECIMATION_VERTICAL; XI_PRM_DECIMATION_HORIZONTAL","Binning/Decimation: vertical x horizontal"]
["Channel Count",16,"[count]",4,16,"XI_PRM_SENSOR_OUTPUT_CHANNEL_COUNT","IMX252 supports 4; 8; or 16 channels"]
["ROI Width",2064,"[count]",8,2064,"XI_PRM_WIDTH","ROI in X direction decreases average transport bandwidth needed to transfer one frame (the whole line is read from sensor but only ROI part is sent)"]
["ROI Height",1544,"[count]",4,1544,"XI_PRM_HEIGHT","ROI in Y direction decreases frame readout time (decreases number of lines that need to be read out before going to next frame)"]
["Exp Time",19,"[us]",{"$f":"B24","v":19},30000000,"XI_PRM_EXPOSURE"]
["Transport Bit Depth",8,"[count]",8,16,"XI_PRM_OUTPUT_DATA_BIT_DEPTH"]
["Troughput Limit",390,"[MB/s]",{"$f":"(10000000+(9375000/(65535*B9))*B9*B8*B11)/1000000","v":12.362096589608607},1000,"XI_PRM_LIMIT_BANDWIDTH","Adjusts Line Period (it affects the granularity of exposure time)"]
[]
["Results"]
["Frame Transfer",null,null,null,null,"Calculations",null,null,null,null,"Register Presets"]
["Pixel Count",{"$f":"B9*B8/1000000","v":3.1868159999999999},"[Mpix]",null,null,"bit depth number",{"$f":"(B4-6)/2","v":1},"[count]",null,null,"Channel Count",null,16,8,4]
["Image Size",{"$f":"B8*B9/8*B11/1000000","v":3.1868159999999999},"[MBytes]",null,null,"channel count log",{"$f":"LOG(B7,2)","v":4},"[count]",null,"8bit","Normal","HMAX",217,310,576]
["Line Period",5.292307692307693,"[us]",null,null,"HMAX reg min",{"$f":"INDIRECT(ADDRESS((G16*2+15)+ISNUMBER(FIND(\"x2\",B6, 2))*1, 17-G17))","v":217},"[count]",null,null,"Decimation Xx2","HMAX",217,218,320]
["Frame Time",{"$f":"G20*B18/1000","v":8.3724307692307711},"[ms]",null,null,"H period min",{"$f":"(1/75000000)*1000000*G18","v":2.8933333333333335},"[us]",null,"10bit","Normal","HMAX",245,380,710]
["Max FPS",{"$f":"1000/B19","v":119.43962602534323},"[count]",null,null,"VMAX",{"$f":"MAX(ROUND((((B10-13.73)/B18)+13), 0), B9+38)","v":1582},"[count]",null,null,"Decimation Xx2","HMAX",245,245,390]
["Average Transfer Speed",{"$f":"B17/B19*1000","v":380.63211125158017},"[MB/s]",null,null,"FOT",{"$f":"10*B18","v":52.923076923076934},"[us]",null,"12bit","Normal","HMAX",396,444,846]
[null,null,null,null,null,"Readout Time",{"$f":"B18*B9/1000","v":8.1713230769230769},"[ms]",null,null,"Decimation Xx2","HMAX",396,396,456]
["Exposure times",null,null,null,null,"Interface max",390,"[MB/s] "]
["Min Exposure Time",{"$f":"ROUND(B18+13.73, 0)","v":19},"[us]"]
["Actual Exposure Time",{"$f":"((ROUND((B10-13.73)/B18,0)*B18)+13.73)","v":19.022307692307692},"[us]"]
[]
["Transport"]
["Link Throughput ",{"$f":"B16*B11/8/G22*1000","v":389.99999999999994},"[MB/s] ",{"$f":"IF((B28>G23), \"Throughput is higher than camera family data interface capability\", \"\")","v":""}]

{"sheet":"IMX250","index":8,"n_rows":28,"n_cols":15,"rows_kept":28,"cut":false,"hidden":false,"merged":[]}
[null,null,null,null,null,null,"Note"]
["Camera Model","MC050CG-SY",null,null,null,null,"xiC Family, 5.0 MPix, Color model"]
["Setting","Value","Units","min","max","xiApi parameter","Note"]
["Sensor Bit Depth",8,"[count]",8,12,"XI_PRM_SENSOR_DATA_BIT_DEPTH ","IMX250 supports 8; 10 and 12 bit depth"]
["Binning","1x1",null,null,null,"XI_PRM_BINNING_VERTICAL; XI_PRM_BINNING_HORIZONTAL ","Only Mono IMX250 supports Binning"]
["Decimation","1x1",null,null,null,"XI_PRM_DECIMATION_VERTICAL; XI_PRM_DECIMATION_HORIZONTAL","Binning/Decimation: vertical x horizontal"]
["Channel Count",16,"[count]",4,16,"XI_PRM_SENSOR_OUTPUT_CHANNEL_COUNT","IMX250 supports 4; 8; or 16 channels"]
["ROI Width",2464,"[count]",8,2464,"XI_PRM_WIDTH","ROI in X direction decreases average transport bandwidth needed to transfer one frame (the whole line is read from sensor but only ROI part is sent)"]
["ROI Height",2056,"[count]",4,2056,"XI_PRM_HEIGHT","ROI in Y direction decreases frame readout time (decreases number of lines that need to be read out before going to next frame)"]
["Exp Time",20,"[us]",{"$f":"B24","v":20},30000000,"XI_PRM_EXPOSURE"]
["Transport Bit Depth",8,"[count]",8,16,"XI_PRM_OUTPUT_DATA_BIT_DEPTH"]
["Troughput Limit",390,"[MB/s]",{"$f":"(10000000+(9375000/(65535*B9))*B9*B8*B11)/1000000","v":12.819867246509499},1000,"XI_PRM_LIMIT_BANDWIDTH","Adjusts Line Period (it affects the granularity of exposure time)"]
[]
["Results"]
["Frame Transfer",null,null,null,null,"Calculations",null,null,null,null,"Register Presets"]
["Pixel Count",{"$f":"B9*B8/1000000","v":5.0659840000000003},"[Mpix]",null,null,"bit depth number",{"$f":"(B4-6)/2","v":1},"[count]",null,null,"Channel Count",null,16,8,4]
["Image Size",{"$f":"B8*B9/8*B11/1000000","v":5.0659840000000003},"[MBytes]",null,null,"channel count log",{"$f":"LOG(B7,2)","v":4},"[count]",null,"8bit","Normal","HMAX",217,360,676]
["Line Period",6.3179487179487177,"[us]",null,null,"HMAX reg min",{"$f":"INDIRECT(ADDRESS((G16*2+15)+ISNUMBER(FIND(\"x2\",B6, 2))*1, 17-G17))","v":217},"[count]",null,null,"Decimation Xx2","HMAX",218,218,368]
["Frame Time",{"$f":"G20*B18/1000","v":13.229784615384615},"[ms]",null,null,"H period min",{"$f":"(1/75000000)*1000000*G18","v":2.8933333333333335},"[us]",null,"10bit","Normal","HMAX",245,440,835]
["Max FPS",{"$f":"1000/B19","v":75.587020429427312},"[count]",null,null,"VMAX",{"$f":"MAX(ROUND((((B10-13.73)/B18)+13), 0), B9+38)","v":2094},"[count]",null,null,"Decimation Xx2","HMAX",260,250,450]
["Average Transfer Speed",{"$f":"B17/B19*1000","v":382.92263610315189},"[MB/s]",null,null,"FOT",{"$f":"10*B18","v":63.179487179487175},"[us]",null,"12bit","Normal","HMAX",396,519,996]
[null,null,null,null,null,"Readout Time",{"$f":"B18*B9/1000","v":12.989702564102563},"[ms]",null,null,"Decimation Xx2","HMAX",396,396,534]
["Exposure times",null,null,null,null,"Interface max",390,"[MB/s] "]
["Min Exposure Time",{"$f":"ROUND(B18+13.73, 0)","v":20},"[us]"]
["Actual Exposure Time",{"$f":"((ROUND((B10-13.73)/B18,0)*B18)+13.73)","v":20.047948717948717},"[us]"]
[]
["Transport"]
["Link Throughput ",{"$f":"B16*B11/8/G22*1000","v":390.00000000000006},"[MB/s] ",{"$f":"IF((B28>G23), \"Throughput is higher than camera family data interface capability\", \"\")","v":""}]

{"sheet":"IMX255","index":9,"n_rows":28,"n_cols":15,"rows_kept":28,"cut":false,"hidden":false,"merged":[]}
[null,null,null,null,null,null,"Note"]
["Camera Model","MC089CG-SY",null,null,null,null,"xiC Family, 8.9 MPix, Color model"]
["Setting","Value","Units","min","max","xiApi parameter","Note"]
["Sensor Bit Depth",8,"[count]",8,12,"XI_PRM_SENSOR_DATA_BIT_DEPTH ","IMX255 supports 8; 10 and 12 bit depth"]
["Binning","1x1",null,null,null,"XI_PRM_BINNING_VERTICAL; XI_PRM_BINNING_HORIZONTAL ","Only Mono IMX255 supports Binning"]
["Decimation","1x1",null,null,null,"XI_PRM_DECIMATION_VERTICAL; XI_PRM_DECIMATION_HORIZONTAL","Binning/Decimation: vertical x horizontal"]
["Channel Count",16,"[count]",4,16,"XI_PRM_SENSOR_OUTPUT_CHANNEL_COUNT","IMX255 supports 4; 8; or 16 channels"]
["ROI Width",4112,"[count]",8,4112,"XI_PRM_WIDTH","ROI in X direction decreases average transport bandwidth needed to transfer one frame (the whole line is read from sensor but only ROI part is sent)"]
["ROI Height",2176,"[count]",4,2176,"XI_PRM_HEIGHT","ROI in Y direction decreases frame readout time (decreases number of lines that need to be read out before going to next frame)"]
["Exp Time",25,"[us]",{"$f":"B24","v":25},30000000,"XI_PRM_EXPOSURE"]
["Transport Bit Depth",8,"[count]",8,16,"XI_PRM_OUTPUT_DATA_BIT_DEPTH"]
["Troughput Limit",390,"[MB/s]",{"$f":"(10000000+(9375000/(65535*B9))*B9*B8*B11)/1000000","v":14.705882352941176},1000,"XI_PRM_LIMIT_BANDWIDTH","Adjusts Line Period (it affects the granularity of exposure time)"]
[]
["Results"]
["Frame Transfer",null,null,null,null,"Calculations",null,null,null,null,"Register Presets"]
["Pixel Count",{"$f":"B9*B8/1000000","v":8.9477119999999992},"[Mpix]",null,null,"bit depth number",{"$f":"(B4-6)/2","v":1},"[count]",null,null,"Channel Count",null,16,8,4]
["Image Size",{"$f":"B8*B9/8*B11/1000000","v":8.9477119999999992},"[MBytes]",null,null,"channel count log",{"$f":"LOG(B7,2)","v":4},"[count]",null,"8bit","Normal","HMAX",355,568,1092]
["Line Period",10.543589743589743,"[us]",null,null,"HMAX reg min",{"$f":"INDIRECT(ADDRESS((G16*2+15)+ISNUMBER(FIND(\"x2\",B6, 2))+ISNUMBER(FIND(\"x2\",B5, 2)), 17-G17))","v":355},"[count]",null,null,"Decimation Xx2","HMAX",356,356,576]
["Frame Time",{"$f":"G20*B18/1000","v":23.343507692307693},"[ms]",null,null,"H period min",{"$f":"(1/75000000)*1000000*G18","v":4.7333333333333334},"[us]",null,"10bit","Normal","HMAX",375,700,1355]
["Max FPS",{"$f":"1000/B19","v":42.838463404089296},"[count]",null,null,"VMAX",{"$f":"MAX(ROUND((((B10-14.26)/B18)+13), 0), B9+38)","v":2214},"[count]",null,null,"Decimation Xx2","HMAX",375,380,710]
["Average Transfer Speed",{"$f":"B17/B19*1000","v":383.30623306233059},"[MB/s]",null,null,"FOT",{"$f":"10*B18","v":105.43589743589743},"[us]",null,"12bit","Normal","HMAX",522,831,1614]
[null,null,null,null,null,"Readout Time",{"$f":"B18*B9/1000","v":22.942851282051279},"[ms]",null,null,"Decimation Xx2","HMAX",522,522,846]
["Exposure times",null,null,null,null,"Interface max",390,"[MB/s] "]
["Min Exposure Time",{"$f":"ROUND(B18+14.26, 0)","v":25},"[us]"]
["Actual Exposure Time",{"$f":"((ROUND((B10-14.26)/B18,0)*B18)+14.26)","v":24.803589743589743},"[us]"]
[]
["Transport"]
["Link Throughput ",{"$f":"B16*B11/8/G22*1000","v":390},"[MB/s] ",{"$f":"IF((B28>G23), \"Throughput is higher than camera family data interface capability\", \"\")","v":""}]

{"sheet":"IMX253","index":10,"n_rows":28,"n_cols":15,"rows_kept":28,"cut":false,"hidden":false,"merged":[]}
[null,null,null,null,null,null,"Note"]
["Camera Model","MC124CG-SY",null,null,null,null,"xiC Family, 12.4 MPix, Color model"]
["Setting","Value","Units","min","max","xiApi parameter","Note"]
["Sensor Bit Depth",8,"[count]",8,12,"XI_PRM_SENSOR_DATA_BIT_DEPTH ","IMX253 supports 8; 10 and 12 bit depth"]
["Binning","1x1",null,null,null,"XI_PRM_BINNING_VERTICAL; XI_PRM_BINNING_HORIZONTAL ","Only Mono IMX253 supports Binning"]
["Decimation","1x1",null,null,null,"XI_PRM_DECIMATION_VERTICAL; XI_PRM_DECIMATION_HORIZONTAL","Binning/Decimation: vertical x horizontal"]
["Channel Count",16,"[count]",4,16,"XI_PRM_SENSOR_OUTPUT_CHANNEL_COUNT","IMX253 supports 4; 8; or 16 channels"]
["ROI Width",4112,"[count]",8,4112,"XI_PRM_WIDTH","ROI in X direction decreases average transport bandwidth needed to transfer one frame (the whole line is read from sensor but only ROI part is sent)"]
["ROI Height",3008,"[count]",4,3008,"XI_PRM_HEIGHT","ROI in Y direction decreases frame readout time (decreases number of lines that need to be read out before going to next frame)"]
["Exp Time",25,"[us]",{"$f":"B24","v":25},30000000,"XI_PRM_EXPOSURE"]
["Transport Bit Depth",8,"[count]",8,16,"XI_PRM_OUTPUT_DATA_BIT_DEPTH"]
["Troughput Limit",390,"[MB/s]",{"$f":"(10000000+(9375000/(65535*B9))*B9*B8*B11)/1000000","v":14.705882352941178},1000,"XI_PRM_LIMIT_BANDWIDTH","Adjusts Line Period (it affects the granularity of exposure time)"]
[]
["Results"]
["Frame Transfer",null,null,null,null,"Calculations",null,null,null,null,"Register Presets"]
["Pixel Count",{"$f":"B9*B8/1000000","v":12.368895999999999},"[Mpix]",null,null,"bit depth number",{"$f":"(B4-6)/2","v":1},"[count]",null,null,"Channel Count",null,16,8,4]
["Image Size",{"$f":"B8*B9/8*B11/1000000","v":12.368895999999999},"[MBytes]",null,null,"channel count log",{"$f":"LOG(B7,2)","v":4},"[count]",null,"8bit","Normal","HMAX",355,568,1092]
["Line Period",10.543589743589743,"[us]",null,null,"HMAX reg min",{"$f":"INDIRECT(ADDRESS((G16*2+15)+ISNUMBER(FIND(\"x2\",B6, 2))+ISNUMBER(FIND(\"x2\",B5, 2)), 17-G17))","v":355},"[count]",null,null,"Decimation Xx2","HMAX",355,356,576]
["Frame Time",{"$f":"G20*B18/1000","v":32.115774358974356},"[ms]",null,null,"H period min",{"$f":"(1/75000000)*1000000*G18","v":4.7333333333333334},"[us]",null,"10bit","Normal","HMAX",375,700,1355]
["Max FPS",{"$f":"1000/B19","v":31.137346676511395},"[count]",null,null,"VMAX",{"$f":"MAX(ROUND((((B10-14.26)/B18)+13), 0), B9+38)","v":3046},"[count]",null,null,"Decimation Xx2","HMAX",375,380,710]
["Average Transfer Speed",{"$f":"B17/B19*1000","v":385.13460275771507},"[MB/s]",null,null,"FOT",{"$f":"10*B18","v":105.43589743589743},"[us]",null,"12bit","Normal","HMAX",522,831,1614]
[null,null,null,null,null,"Readout Time",{"$f":"B18*B9/1000","v":31.715117948717946},"[ms]",null,null,"Decimation Xx2","HMAX",522,522,846]
["Exposure times",null,null,null,null,"Interface max",390,"[MB/s] "]
["Min Exposure Time",{"$f":"ROUND(B18+14.26, 0)","v":25},"[us]"]
["Actual Exposure Time",{"$f":"((ROUND((B10-14.26)/B18,0)*B18)+14.26)","v":24.803589743589743},"[us]"]
[]
["Transport"]
["Link Throughput ",{"$f":"B16*B11/8/G22*1000","v":390},"[MB/s] ",{"$f":"IF((B28>G23), \"Throughput is higher than camera family data interface capability\", \"\")","v":""}]

{"sheet":"GSENSE2020","index":11,"n_rows":29,"n_cols":8,"rows_kept":29,"cut":false,"hidden":false,"merged":[]}
[null,null,null,null,null,null,"Note"]
["Camera Model","CB042CG-GP",null,null,null,null,"xiB Family, 4.2 MPix, Color model"]
["Setting","Value","Units","min","max","xiApi parameter","Note"]
["Shutter type","Rolling",null,null,null,"XI_PRM_SHUTTER_TYPE"]
["Sensor Bit Depth",12,"[count]",12,12,"XI_PRM_SENSOR_DATA_BIT_DEPTH "]
[]
["Binning","1x1",null,null,null,"XI_PRM_BINNING_VERTICAL; XI_PRM_BINNING_HORIZONTAL ","Binning: vertical x horizontal"]
["ROI Width",2048,"[count]",8,2048,"XI_PRM_WIDTH","ROI in X direction decreases average transport bandwidth needed to transfer one frame (the whole line is read from sensor but only ROI part is sent)"]
["ROI Height",2048,"[count]",2,2048,"XI_PRM_HEIGHT","ROI in Y direction decreases frame readout time (decreases number of lines that need to be read out before going to next frame)"]
["Exp Time",8,"[us]",8,30000000,"XI_PRM_EXPOSURE"]
["Transport Bit Depth",8,"[count]",8,16,"XI_PRM_OUTPUT_DATA_BIT_DEPTH"]
["Troughput Limit",1300,"[MB/s]",27.292722130663897,2000,"XI_PRM_LIMIT_BANDWIDTH","Adjusts Line Period"]
[]
[]
["Results"]
["Frame Transfer",null,null,null,null,"Calculations"]
["Pixel Count",{"$f":"B9*B8/1000000","v":4.1943039999999998},"[Mpix]"]
["Image Size",{"$f":"(B17*B11/8)*G20","v":8.3886079999999996},"[MBytes]",null,null,"T_clk_seq",{"$f":"1/(600*1000000/12)*1000000","v":0.02},"[us]"]
["Line Period",10.68,"[us]",null,null,"SI_FOT",{"$f":"ISNUMBER(FIND(\"Global\",B4,1))*12*B19","v":0},"[us]"]
["Frame Time",{"$f":"MAX(G23+G19/1000,B26/1000)","v":21.872640000000001},"[ms]",null,null,"Data_mult",{"$f":"ISNUMBER(FIND(\"Global\",B4,1))*2+2","v":2}]
["Max FPS",{"$f":"1000/B20","v":45.719218164794007},"[count]",null,null,"Line Period min",10.68,"[us]"]
["Average Transfer Speed",{"$f":"B18/B20*1000","v":383.5205992509363},"[MB/s]",null,null,"Line Period max",{"$f":"(1+ISNUMBER(FIND(\"2x2\",B7,1)))*16383*12/830","v":236.86265060240964},"[us]"]
[null,null,null,null,null,"Readout Time",{"$f":"(ISNUMBER(FIND(\"Global\",B4,1))+1)*B9*B19/1000","v":21.872640000000001},"[ms]"]
["Exposure times",null,null,null,null,"Interface max",1300,"[MB/s] "]
["Min Exposure Time",{"$f":"D10","v":8},"[us]"]
["Actual Exposure Time",{"$f":"B10","v":8},"[us]"]
[]
["Transport"]
["Link Throughput ",{"$f":"B18/G23*1000","v":383.5205992509363},"[MB/s] ",{"$f":"IF((B29>G24), \"Throughput is higher than camera family data interface capability\", \"\")","v":""}]